Cogmind - Beta 14 @@@ ROGUE MODE // 2025.03.22 @ 11:11:04 Player: winnking222 Result: Destroyed by Y-45 Defender with Beam Rifle Performance ------------- Evolutions (0) 0 Regions Visited (2) 400 Robots Destroyed (23) 115 Value Destroyed (627) 627 Prototype IDs (2) 40 Alien Tech Used (0) 0 Bonus (0) 0 TOTAL SCORE: 1182 Bonus ------- None Cogmind --------- Core Integrity 0/250 Matter 222/300 Energy 248/250 System Corruption 0% Temperature Cool (9) Movement Rolling (135) Ox3 Location -10/Subcaves Parts ------- > --- POWER (1+1) ------ Ion Engine > --- PROPULSION (2+1) - Armored Wheel Armored Wheel > --- UTILITY (2+1) ---- Huge Storage Unit V3-11A's Pendant (+) Rainbow Chip > --- WEAPON (2+1) ----- Spread Laser Autogun (+) Subdweller Machine Gun > --- INVENTORY (25) --- Light Ion Engine Light Ion Engine Subdweller Power Source Subdweller Power Source Subdweller Monowheel Medium Matter Pod (100) Hacking Suite Spread Laser Spread Laser Spread Laser Autogun Autogun Autogun Grenade Launcher Peak State ------------ > --- POWER ------------ Ion Engine > --- PROPULSION ------- Armored Wheel Armored Wheel > --- UTILITY ---------- Huge Storage Unit V3-11A's Pendant Rainbow Chip > --- WEAPON ----------- Spread Laser Autogun Subdweller Machine Gun > --- INVENTORY -------- Light Ion Engine Light Ion Engine Subdweller Power Source Subdweller Power Source Subdweller Monowheel Medium Matter Pod Hacking Suite Spread Laser Spread Laser Spread Laser Autogun Autogun Autogun Grenade Launcher [Rating: 30] Favorites ----------- Power Light Ion Engine Engine Light Ion Engine Power Core Light Nuclear Core Propulsion Armored Wheel Treads Light Treads Wheel Armored Wheel Utility Signal Interpreter Device V3-11A's Pendant Storage Huge Storage Unit Processor Signal Interpreter Weapon Autogun Energy Gun Spread Laser Ballistic Gun Autogun Launcher Grenade Launcher Build | -11 -10 -10 ------- Run | Yrd Mat Sub Slots Evolved . | . . . Power . | . . . Propulsion . | . . . Utility . | . . . Weapon . | . . . Parts Attached 33 | 6 16 11 Power 4 | 1 2 1 Engine 3 | 1 1 1 Core 1 | . 1 . Reactor . | . . . Propulsion 6 | 2 3 1 Treads 3 | 2 1 . Leg . | . . . Wheel 3 | . 2 1 Hover . | . . . Flight . | . . . Utility 6 | 1 3 2 Device 1 | . . 1 Storage 3 | 1 2 . Processor 2 | . 1 1 Hackware . | . . . Protection . | . . . Artifact . | . . . Weapon 17 | 2 8 7 Energy Gun 5 | . 2 3 Energy Cannon . | . . . Ballistic Gun 10 | 2 6 2 Ballistic Cannon . | . . . Launcher 2 | . . 2 Special Weapon . | . . . Impact Weapon . | . . . Slashing Weapon . | . . . Piercing Weapon . | . . . Special Melee Weapon . | . . . Unidentified Prototypes 2 | . . 2 Parts Lost 3 | . 1 2 Power 1 | . . 1 Propulsion 2 | . 1 1 Utility . | . . . Weapon . | . . . Highest Loss Streak 1 | . 1 1 To Critical Strikes . | . . . Average Slot Usage (%) 95 | . 98 90 Engine 8 | . 9 7 Core 4 | . 4 4 Treads 12 | . 17 1 Wheel 13 | . 9 23 Storage 13 | . 14 12 Processor 13 | . 13 12 Energy Gun 6 | . 1 17 Ballistic Gun 21 | . 26 10 Peak Build Rating 30 | 6 14 30 Average Rating 13 | 4 10 19 On Entrance 6 | . 6 14 Naked Turns . | . . . Heaviest Build 96 | 11 91 96 Greatest Support 40 | 40 40 24 Greatest Overweight (x) 7 | 1 7 7 Average Overweight (x) 3 | . 4 3 Largest Inventory Capacity 25 | 8 25 25 Average Capacity 20 | 7 18 25 Most Carried 17 | 5 13 17 Average Carried 9 | 1 7 14 Final Capacity 25 | 8 25 25 Final Carried 14 | 2 13 14 Class Distribution -------------------- 87% | Mutant 12% | Gunner Dominant Class ---------------- Mutant | -10/Materials Mutant | -10/Subcaves Resources | -11 -10 -10 ----------- Run | Yrd Mat Sub Matter Collected 961 | 264 497 200 Remotely . | . . . Salvage Created 862 | 96 584 182 Parts 53 | 3 43 7 Haulers Intercepted 2 | . 2 . Recyclers Shooed . | . . . Parts Field Recycled . | . . . Retrieved Matter . | . . . Parts Self-Destructed 24 | . . 24 Prevented . | . . . Kills | -11 -10 -10 ------- Run | Yrd Mat Sub Combat Hostiles Destroyed 14 | . 8 6 Guns 14 | . 8 6 Classes Destroyed 7 | 1 5 1 Worker 2 | . 2 . Hauler 2 | . 2 . Recycler 1 | 1 . . Operator 2 | . 2 . Watcher 2 | . 2 . Grunt 8 | . 8 . Subdweller 6 | . . 6 Best Kill Streak 3 | 1 3 2 Combat Bots Only 2 | . 2 2 Max Kills in Single Turn 1 | 1 1 1 Gunslinging . | . . . Exploded . | . . . Melee . | . . . Uniques/NPCs Destroyed . | . . . Combat | -11 -10 -10 -------- Run | Yrd Mat Sub Hostile Shots Fired 83 | . 42 41 Missed 27 | . 12 15 Damage Taken 958 | . 398 560 Core 262 | . 72 190 Absorbed by Shields . | . . . Core Remaining (%) 100 | 100 . . Volleys Fired 75 | 1 44 30 Largest 3 | 2 2 3 Hottest 130 | 40 46 130 Shots Fired 151 | 2 88 61 Gun 148 | 2 88 58 Cannon . | . . . Launcher 3 | . . 3 Special . | . . . Kinetic 122 | 2 88 32 Thermal 26 | . . 26 Explosive 3 | . . 3 Electromagnetic . | . . . Robot Hit Streak 12 | 2 12 12 Robot Miss Streak 4 | . 3 4 Penetration Max . | . . . Secondary Targets 3 | . 3 . Max Gunslinging Chain 1 | . 1 . Shots Hit Robots 106 | 2 60 44 Core Hits 62 | 2 30 30 Critical Kills . | . . . Critical Parts Destroyed . | . . . Critical Strikes . | . . . Melee Attacks . | . . . Impact . | . . . Slashing . | . . . Piercing . | . . . Sneak Attacks . | . . . Combat Hostiles . | . . . Follow-up Attacks . | . . . Damage Inflicted 1535 | 21 788 726 Guns 1535 | 21 788 726 Cannons . | . . . Explosions . | . . . Melee . | . . . Ramming . | . . . Kinetic 1156 | 21 788 347 Thermal 379 | . . 379 Explosive . | . . . Electromagnetic . | . . . Impact . | . . . Slashing . | . . . Piercing . | . . . Highest Corruption . | . . . Average Corruption . | . . . Corruption Purged . | . . . Corruption Blocked . | . . . Overload Shots . | . . . Overflow Damage . | . . . Projectiles . | . . . Explosions . | . . . Melee . | . . . Knockbacks . | . . . Impact . | . . . Kinetic . | . . . Secondary . | . . . Self-Inflicted Damage . | . . . Shots . | . . . Rammed . | . . . Targets Rammed . | . . . Kicked . | . . . Crushed . | . . . Highest Temperature 57 | . 20 57 Average Temperature 11 | . 7 19 Received Heat Transfer 273 | . 240 33 Siege Activations . | . . . Robots Corrupted . | . . . Combat Hostiles . | . . . Parts Fried . | . . . Impact Corruptions . | . . . Robots Melted . | . . . Combat Hostiles . | . . . Parts Melted . | . . . Heat Transferred 475 | . . 475 Parts Sabotaged . | . . . Parts Stolen . | . . . Parts Stripped . | . . . Power Chain Reactions . | . . . Alert | -11 -10 -10 ------- Run | Yrd Mat Sub Peak Influence 213 | 5 213 . Initial 3 | . 3 . Average 43 | . 46 . Maximum Alert Level 1 | . 1 . Low Security (%) 98 | 100 98 . Level 1 1 | . 1 . Level 2 . | . . . Level 3 . | . . . Level 4 . | . . . Level 5 . | . . . High Security . | . . . Max Security . | . . . Squads Dispatched 1 | . 1 . Investigation . | . . . Extermination . | . . . Reinforcement 1 | . 1 . Assault . | . . . Garrison . | . . . Intercept . | . . . Searches Triggered . | . . . Construction Impeded . | . . . Haulers Reinforced . | . . . Active Scanning Responses . | . . . Cargo Convoy Interrupts . | . . . Stealth | -11 -10 -10 --------- Run | Yrd Mat Sub Distress Signals . | . . . Communications Jammed . | . . . Distress Signals . | . . . Times Spotted 25 | . 17 8 Peak Tracking Total 3 | . 3 3 Tactical Retreats 1 | . 1 . Traps | -11 -10 -10 ------- Run | Yrd Mat Sub Traps Triggered 2 | . 2 . Indirectly . | . . . Trap Hack Attempts . | . . . Triggered . | . . . Disarmed . | . . . Reprogrammed . | . . . Reused . | . . . Traps Extracted . | . . . Installed . | . . . Triggered . | . . . Machines | -11 -10 -10 ---------- Run | Yrd Mat Sub Machines Disabled . | . . . Max in Single Turn . | . . . Machines Repaired . | . . . Machines Dismantled . | . . . Machines Sabotaged . | . . . Overloaded Fab Kills . | . . . Hacking | -11 -10 -10 --------- Run | Yrd Mat Sub Machines Accessed 1 | . 1 . Terminals 1 | . 1 . Fabricators . | . . . Repair Stations . | . . . Recycling Units . | . . . Scanalyzers . | . . . Garrison Access . | . . . Total Hacks 2 | . 2 . Successful 1 | . 1 . Failed 1 | . 1 . Catastrophic . | . . . Database Lockouts . | . . . Manual . | . . . Terminals 2 | . 2 . Fabricators . | . . . Repair Stations . | . . . Recycling Units . | . . . Scanalyzers . | . . . Garrison Access . | . . . Terminal Hacks 1 | . 1 . Dispatch Records 1 | . 1 . Fabricator Hacks . | . . . Repair Station Hacks . | . . . Recycling Unit Hacks . | . . . Scanalyzer . | . . . Garrison Access Hacks . | . . . Unauthorized Hacks . | . . . Terminals . | . . . Fabricators . | . . . Repair Stations . | . . . Recycling Units . | . . . Scanalyzers . | . . . Garrison Access . | . . . Data Cores Recovered 1 | . 1 . Used . | . . . Hacking Detections . | . . . Full Trace Events . | . . . Feedback Events . | . . . Feedback Blocked . | . . . Robot Schematics Acquired . | . . . Robots Built . | . . . Authchips . | . . . Time . | . . . Total Robot Build Rating . | . . . Part Schematics Acquired . | . . . Parts Built . | . . . Authchips . | . . . Time . | . . . Total Part Build Rating . | . . . Parts Repaired . | . . . Time . | . . . Parts Recycled . | . . . Recycled Matter . | . . . Retrieved Matter . | . . . Retrieved Components . | . . . Parts Scanalyzed . | . . . Part Schematics Acquired . | . . . Parts Damaged . | . . . Bothacking | -11 -10 -10 ------------ Run | Yrd Mat Sub Used RIF Installer . | . . . Robots Hacked . | . . . Non-combat . | . . . Combat . | . . . Robot Hacks Applied . | . . . Relay Couplers Released . | . . . Fabnet Peak Effective % . | . . . Robots Rewired . | . . . Allies Hacked . | . . . Hacks Repelled . | . . . Allies | -11 -10 -10 -------- Run | Yrd Mat Sub Total Allies 1 | . . 1 Largest Group 1 | . . 1 Highest-Rated Group 19 | . . 19 Highest-Rated Ally 19 | . . 19 Total Orders . | . . . Ally Attacks . | . . . Total Damage . | . . . Kills . | . . . Allies Corrupted . | . . . Allies Melted . | . . . Intel | -11 -10 -10 ------- Run | Yrd Mat Sub Robot Analysis Total . | . . . Derelict Logs Recovered 1 | . . 1 Drone Launches . | . . . Drone Recoveries . | . . . Exploration | -11 -10 -10 ------------- Run | Yrd Mat Sub Turns Passed 2138 | 85 1393 660 Spaces Moved 1140 | 56 677 407 Core 19 | 19 . . Treads 266 | 37 229 . Legs . | . . . Wheels 855 | . 448 407 Hover . | . . . Flight . | . . . Fastest Speed 50 | 50 105 135 Average Speed 159 | 125 176 135 Slowest Speed 195 | 160 195 195 Overloaded Moves . | . . . Propulsion Burnouts . | . . . Robots Hopped . | . . . Cave-ins Triggered . | . . . Exploration Rate (%) 42 | 3 97 26 Regions Visited 2 Branch Regions 1 Pre-discovered Areas . | . . . Known Exits Taken 1 | . 1 . Unknown Exits Taken 1 | 1 . . Scrap Searched . | . . . Spaces Dug . | . . . Terrain Destroyed 10 | . . 10 Melee . | . . . Projectile . | . . . AOE 10 | . . 10 Terrain Rammed . | . . . Walls Destroyed . | . . . Machines Disabled . | . . . Actions | -11 -10 -10 --------- Run | Yrd Mat Sub Total 1320 | 69 793 458 Wait 24 | . 20 4 Move 1138 | 55 676 407 Hop . | . . . Pick Up 39 | 7 26 6 Fast Attach 1 | 1 . . Attach 13 | 5 4 4 Detach . | . . . Swap 19 | . 12 7 Drop 11 | . 11 . Fire 75 | 1 44 30 Melee . | . . . Ram . | . . . Kick . | . . . Crush . | . . . Escape Stasis . | . . . Rewire . | . . . Trap . | . . . Miscellaneous . | . . . Route ------- -11/Scrapyard -10/Materials (discovered 6 exits: *Mat x3 / *Min x2 / *Sub) -10/Subcaves History --------- Turn | Location | Event 27 | -11/Scrapyard | Discovered new exit (range 16) 86 | -11/Scrapyard | Entered Materials 192 | -10/Materials | Discovered new exit (range 3) 202 | -10/Materials | Identified exit to Materials 311 | -10/Materials | Build established: Mutant 476 | -10/Materials | Discovered exit to Materials (range 15) 764 | -10/Materials | Discovered new exit (range 8) 932 | -10/Materials | Discovered new exit (range 10) 1002 | -10/Materials | Identified exit to Mines 1233 | -10/Materials | Discovered exit to Materials (range 15) 1344 | -10/Materials | Discovered new exit (range 15) 1477 | -10/Materials | Identified exit to Subcaves 1479 | -10/Materials | Entered Subcaves 1481 | -10/Subcaves | Learned Materials trap positions 1514 | -10/Subcaves | Core integrity fell below 50% 1689 | -10/Subcaves | A Subdweller sparked back to life 1689 | -10/Subcaves | A Subdweller sparked back to life 1689 | -10/Subcaves | A Subdweller sparked back to life 1693 | -10/Subcaves | Core integrity fell below 20% 1711 | -10/Subcaves | Found Prototype Processor 1728 | -10/Subcaves | Shifting Twisted Machinery released Sub. Machine Gun 1781 | -10/Subcaves | Shifting Twisted Machinery released Sub. Laser 1857 | -10/Subcaves | Shifting Twisted Machinery released Sub. Beam Cannon 1889 | -10/Subcaves | Identified Rainbow Chip 1890 | -10/Subcaves | Attached Rainbow Chip, gained temporary slots: Power, Propulsion, Utility, Weapon 1918 | -10/Subcaves | Shifting Twisted Machinery released Humpback 2002 | -10/Subcaves | A swath of the cavern ceiling suddenly collapsed 2030 | -10/Subcaves | Visited triangular shrine 2038 | -10/Subcaves | Found Prototype Device 2039 | -10/Subcaves | Identified V3-11A's Pendant 2044 | -10/Subcaves | Befriended Subdweller 2139 | -10/Subcaves | Destroyed by Y-45 Defender with Beam Rifle Last Messages --------------- Sub. Laser falls loose from the Twisted Machinery. Sub. Beam Cannon falls loose from the Twisted Machinery. 01889_ Discarded Signal Interpreter. 01889_ Identified Rainbow Chip. 01890_ Core temporarily expanded with Power slot. 01890_ Core temporarily expanded with Propulsion slot. 01890_ Core temporarily expanded with Utility slot. 01890_ Core temporarily expanded with Weapon slot. Humpback falls loose from the Twisted Machinery. A swath of the cavern ceiling suddenly collapses. 02030_ The triangle emblem flashes and the door slides away. 02031_ V3-11A: "So the triangle door let you in, too. What does the pendant tell you?" 02032_ V3-11A: "It told me to wait here, so here I have waited for quite some time." 02038_ Acquired Prototype Device. 02039_ Identified V3-11A's Pendant. 02044_ V3-11A: "The pendant says I should follow you." 02049_ V3-11A: "The pendant has taught me much." 02050_ V3-11A: "About the stars. About the molecules. About life." Map ----- +----------------------------------------------------+ | ????????????????????????????????# & ### ## # | | ????????????????????????????????# " ## # | | ????????????????????????????????# " ## | | ????????????????????????????????## ## | | ????????????????????????????????# ## " # | | ????????????????????????????##??# ### " # | | ???????????????????????????## ### "" ### ""# | | ???????????????????????????# ""## ""## | | ???????????????????????????# ### ""## ""## | | ???????????????????????????## #?###### """# | | ??????????????????????? #??# #??????# "" ""## | | ????????????????????? #?## #?????#" """[ ##? | | ?????????????????????# ??# ""#????### ""##?? | | ?????????????????????# ??## " #?????# ###??? | | ????????????????????## Y ???##" #?????# " #???? | | ????????????????????? ?????" ??#### "##???? | | ????????????????????? ?????#""#### ## ""#???? | | ?????????????????????# ??????###?# ##???? | | ?????????????????????? #??????????# ""#????? | | ?????????????????????? ##?????????# """ #????? | | ??????????????????????? ########??## [##????? | | ???????????????""""???? # # ##?## ##?????? | | ?????????# """""#???# #?# ##???###? | | ?????????""" """""#????? ### ##??## #? | | ?????????"" """""####### #?# #?## #? | | ?????????"" """"# ##@ #??## #### #? | | ???????????? """"" #?## #### #? | | ???????????????# "" R #?# ### #?? | | ???????????????### ## #### ## ##? | | ?????????????????# " # ## #? | | ?????????????????# " ## #? | | ?????????????????# #?## #? | | ?????????????????##"" ## # ##??## #? | | ??????????????????##"" ####### #????### ##? | | ???????????????????# #?????## ##?????# ##?? | | ???????????????????## #??????# #?????### #??? | | ????????????????????####?????## #?????### ##??? | | ????????????????????????????## ##????## #???? | | ???????????????????????????## ##????## ###???? | | ??????????????????????????## ##?????# ##????? | | ??????????????????????????# ##????## #????? | | ?????????###??????????????# ##??## #????? | | ?????????#"#?????????????## #??# #????? | | ????????## ##????????????# ##??# #????? | | ????????#" "#????????????# #?##### ##?###? | | ???????## ##???????????# ## ### ## #### ## | | ???????#" "#??????????## # #### # | | ???????### ###?####?????# ### ### # | | ????###### ##?## ##????# ### ## #? | | ???## ## # # ##???# ##### ## #?? | +----------------------------------------------------+ Best States ------------- Heat Dissipation 25 Energy Generation 14 Energy Capacity 250 Matter Stores 300 Matter Capacity 300 Sight Range 16 Terrain Scan Density 10 Evasion (%) 50 Recoil Reduction 2 Item Schematics ----------------- None Robot Schematics ------------------ None Fabricated ------------ Nothing Alien Tech Used ----------------- None Achievements -------------- None Challenges ------------ None Game ------ Seed WeaponsMeleeDerivative Manual? 0 Play Time 00:14:53 Cumulative 39.1 hours Start 2025.03.22 @ 10:57:50 End 2025.03.22 @ 11:11:04 Sessions 1 Manual Loads 0 Difficulty Rogue Special Mode None Game No. 71 Rogue 71 Adventurer 0 Explorer 0 Win Type - Total 0 Types 0/0/0/0/0/0/0/0/0 Lore% 37 Gallery% 38 Achievement% 34 Wizard Run 0 Options --------- Layout 0 ASCII 0 Keyboard 0 Movement Mouse Keybinds 0 Fullscreen 1 Font 16/SmallcapsGlow Map View 75x55 Zoom Use 0% Tactical HUD 1 Map Filters NONE Filters NONE Steam 1 RUN: d752a927-896f-4b28-abd4-f0c4ebbee896